bitfinex-derivatives/quotes_SOLF0:USTF0_20260312
["timestamp","ask_amount","ask_price","bid_price","bid_amount"]
[1773282771156,9.77234914,85.685,85.662,0.07468788]
[1773282771437,10.503,85.686,85.662,0.07468788]
[1773282771654,9.77235496,85.685,85.662,0.07468788]
[1773282771853,10.503,85.686,85.662,0.07468788]
[1773282779262,9.7552725,85.685,85.613,7.7815665]
[1773282779462,2.54078438,85.68,85.621,7.7815665]
[1773282779657,10.504,85.677,85.621,7.7815665]
[1773282779863,2.54078438,85.69,85.631,7.7815665]
[1773282780662,0.07361425,85.669,85.631,7.7815665]
[1773282782364,10.57861425,85.669,85.631,7.7815665]
[1773282782863,10.57861425,85.669,85.611,7.76801635]
[1773282783455,10.505,85.669,85.611,7.76801635]
[1773282785561,2.54457111,85.65,85.599,7.76517603]
[1773282786760,10.508,85.638,85.599,7.76517603]
[1773282789266,10.507,85.649,85.599,7.76517603]
[1773282789766,36.72,85.671,85.587,10.515]
[1773282789767,2.54457111,85.64,85.587,7.73909014]
[1773282790467,2.54457111,85.65,85.591,7.73909014]
[1773282790668,2.54457111,85.65,85.6,2.54457111]
[1773282790866,2.54457111,85.65,85.601,7.70608207]
[1773282795967,0.07459952,85.634,85.601,7.70608207]
[1773282798968,36.72,85.671,85.604,7.67336319]
[1773282799169,2.54457111,85.66,85.604,7.67336319]
[1773282799671,2.54457111,85.65,85.604,7.67336319]
[1773282800978,10.508,85.638,85.618,0.07414848]
[1773282801168,10.508,85.638,85.593,7.63639666]
[1773282801169,2.54457111,85.63,85.593,7.63639666]
[1773282802576,13.05357111,85.63,85.593,7.63639666]
[1773282804277,10.508,85.639,85.593,7.63639666]
[1773282805077,2.54457111,85.64,85.593,7.63639666]
[1773282805278,13.05157111,85.65,85.593,7.63639666]
[1773282805478,2.54457111,85.64,85.593,7.63639666]
[1773282805976,13.05257111,85.64,85.593,7.63639666]
[1773282806578,2.54457111,85.64,85.593,7.63639666]
[1773282808576,10.509,85.634,85.593,7.63639666]
[1773282808778,0.07411856,85.625,85.593,7.63639666]
[1773282819584,10.508,85.642,85.593,7.63639666]
[1773282819777,10.508,85.638,85.593,7.63639666]
[1773282820176,2.54457111,85.64,85.593,7.63639666]
[1773282820683,10.507,85.648,85.593,7.63639666]
[1773282820884,39.26457111,85.65,85.593,7.63639666]
[1773282822778,10.508,85.638,85.593,7.63639666]
[1773282823089,39.26457111,85.65,85.593,7.63639666]
[1773282824384,39.26457111,85.65,85.59,2.54457111]
[1773282824385,10.507,85.648,85.596,7.73438529]
[1773282824585,10.507,85.648,85.601,7.73438529]
[1773282825382,10.506,85.658,85.601,7.73438529]
[1773282826487,10.506,85.658,85.607,7.71788702]
[1773282828187,10.506,85.657,85.607,7.71788702]
[1773282830191,10.507,85.647,85.607,7.71788702]
[1773282832191,2.54457111,85.65,85.607,7.71788702]
[1773282832490,9.73808427,85.649,85.607,7.71788702]
[1773282832690,9.73808427,85.648,85.607,7.71788702]
[1773282832985,9.73808427,85.647,85.607,7.71788702]
[1773282833186,2.54457111,85.65,85.607,7.71788702]
[1773282833391,10.507,85.645,85.591,7.7107301]
[1773282833787,2.54457111,85.64,85.591,7.7107301]
[1773282834389,10.509,85.636,85.591,7.7107301]
[1773282834992,2.54457111,85.64,85.591,7.7107301]
[1773282835287,2.54457111,85.64,85.605,0.07368771]
[1773282835589,2.54457111,85.65,85.605,0.07368771]
[1773282835789,10.509,85.634,85.605,0.07368771]
[1773282836182,10.509,85.634,85.601,7.71092033]
[1773282837292,2.54457111,85.64,85.601,7.71092033]
[1773282838589,10.509,85.635,85.601,7.71092033]
[1773282840796,45.84371331,85.667,85.601,7.71092033]
[1773282840797,2.54457111,85.66,85.601,7.71092033]
[1773282840996,36.72,85.668,85.611,7.71747558]
[1773282841196,9.7459871,85.667,85.611,7.71747558]
[1773282841394,9.7459871,85.666,85.623,7.71747558]
[1773282841588,36.72,85.668,85.623,7.71747558]
[1773282841791,9.74606052,85.667,85.623,7.71747558]
[1773282841992,9.74606052,85.666,85.623,7.71747558]
[1773282842294,36.72,85.668,85.623,7.71747558]
[1773282842495,10.506,85.656,85.623,7.71747558]
[1773282843001,10.505,85.666,85.623,7.71747558]
[1773282844291,2.54457111,85.7,85.641,7.71253952]
[1773282844498,9.74619077,85.699,85.641,7.71253952]
[1773282844700,9.74619077,85.698,85.641,7.71253952]
[1773282844900,9.74619077,85.697,85.641,7.71253952]
[1773282845096,2.54457111,85.7,85.641,7.71253952]
[1773282845397,10.501,85.702,85.651,7.70387809]
[1773282849805,2.54101576,85.73,85.671,7.73099428]
[1773282850304,2.54101576,85.72,85.671,7.73099428]
[1773282851300,2.54101576,85.73,85.681,7.73569123]
[1773282851505,2.54101576,85.71,85.681,7.73569123]
[1773282851805,2.54101576,85.71,85.661,7.73569123]
[1773282852597,10.499,85.715,85.661,7.73569123]
[1773282854909,10.499,85.715,85.679,0.07431068]
[1773282856107,10.499,85.715,85.679,7.75588428]
[1773282857510,2.54101576,85.77,85.71,2.54101576]
[1773282857709,2.54101576,85.77,85.701,7.68008958]
[1773282857914,13.03301576,85.77,85.711,7.68008958]
[1773282858210,13.03301576,85.77,85.72,2.54101576]
[1773282858416,13.03301576,85.77,85.711,7.68008958]
[1773282861810,36.72,85.779,85.731,7.78976371]
[1773282862213,2.54101576,85.79,85.731,7.78976371]
[1773282862421,36.72,85.805,85.741,7.78976371]
[1773282862610,2.54101576,85.8,85.741,7.78976371]
[1773282863123,2.54101576,85.77,85.728,7.78914789]
[1773282863320,71.75,85.805,85.711,7.78914789]
[1773282863321,2.54101576,85.76,85.711,7.78914789]
[1773282863618,2.54101576,85.75,85.711,7.78914789]
[1773282865020,10.494,85.759,85.711,7.78914789]
[1773282865423,2.54101576,85.75,85.711,7.78914789]
[1773282866722,10.494,85.759,85.711,7.78914789]
[1773282867822,2.54101576,85.75,85.711,7.78914789]
[1773282869313,10.495,85.748,85.711,7.78914789]
[1773282869515,10.495,85.748,85.691,7.63965206]
[1773282869719,2.54101576,85.74,85.691,7.63965206]
[1773282870120,10.495,85.748,85.691,7.63965206]
[1773282873120,2.54101576,85.74,85.691,7.63965206]
[1773282873324,2.54101576,85.73,85.691,7.63965206]
[1773282873630,2.54101576,85.72,85.679,201.72083589]
[1773282873824,2.54101576,85.72,85.68,7.70711471]
[1773282874625,2.54101576,85.71,85.68,7.70711471]
[1773282874822,2.54101576,85.72,85.68,7.70711471]
[1773282878122,10.498,85.723,85.68,7.70711471]
[1773282878326,36.72,85.779,85.68,7.70711471]
[1773282878327,10.497,85.734,85.681,7.72911563]
[1773282880227,10.495,85.744,85.683,7.73518964]
[1773282880533,10.495,85.744,85.701,7.73518964]
[1773282882032,10.494,85.754,85.711,7.73513325]
[1773282882831,176.0,85.792,85.711,7.73513325]
[1773282882832,10.493,85.763,85.711,7.73513325]
[1773282883537,10.492,85.774,85.73,10.28257668]
[1773282883740,2.54101576,85.77,85.717,7.74156092]
[1773282884033,2.54101576,85.76,85.708,36.72]
[1773282884338,2.54101576,85.76,85.709,7.74156092]
[1773282884634,2.54101576,85.76,85.735,0.07388762]
[1773282884830,2.54101576,85.77,85.735,0.07388762]
[1773282885224,10.492,85.773,85.735,0.07388762]
[1773282885429,10.492,85.773,85.721,7.74962112]
[1773282885937,10.492,85.773,85.745,0.07373338]
[1773282886436,36.72,85.81,85.745,0.07373338]
[1773282886437,10.491,85.783,85.745,0.07373338]
[1773282887436,10.491,85.783,85.734,7.74962112]
[1773282888239,10.491,85.783,85.741,7.74685185]
[1773282889435,36.72,85.808,85.741,7.74685185]
[1773282889436,10.489,85.796,85.741,7.74685185]
[1773282890636,10.489,85.796,85.75,2.54101576]
[1773282890838,10.489,85.796,85.751,7.73931386]
[1773282891934,10.488,85.807,85.751,7.73931386]
[1773282892843,10.489,85.796,85.751,7.73931386]
[1773282895840,10.49,85.785,85.738,7.77167288]
[1773282897042,10.49,85.785,85.722,36.72]
[1773282897043,2.06632404,85.849,85.771,3.95257895]
[1773282897244,2.06632404,85.849,85.801,3.95257895]
[1773282898139,2.06632404,85.865,85.811,3.95257895]
[1773282898335,2.54101576,85.89,85.831,3.95257895]
[1773282898539,2.54101576,85.89,85.84,2.54101576]
[1773282898740,2.08813815,85.889,85.84,2.54101576]
[1773282898943,2.08813815,85.889,85.831,3.95257895]
[1773282899343,10.478,85.884,85.831,3.95257895]
[1773282900049,12.56613815,85.884,85.831,3.95257895]
[1773282900445,2.54101576,85.91,85.851,3.95257895]
[1773282900644,2.54101576,85.91,85.861,3.95257895]
[1773282901049,10.476,85.907,85.861,3.95257895]
[1773282901649,10.477,85.896,85.841,3.95257895]
[1773282901846,2.54101576,85.88,85.841,3.95257895]
[1773282902348,10.479,85.878,85.841,3.95257895]
[1773282903341,2.15052077,85.889,85.841,3.95257895]
[1773282904247,10.478,85.888,85.841,3.95257895]
[1773282904448,2.26610209,85.887,85.841,3.95257895]
[1773282905340,10.478,85.884,85.841,3.95257895]
[1773282905540,12.70362169,85.884,85.841,3.95257895]
[1773282907843,2.17850561,85.883,85.841,3.95257895]
[1773282909045,2.11367813,85.92,85.825,3.95257895]
[1773282909348,2.11367813,85.893,85.831,3.95257895]
[1773282909647,2.11367813,85.893,85.798,35.03]
[1773282909648,2.11367813,85.893,85.841,3.95257895]
[1773282909855,10.477,85.891,85.841,3.95257895]
[1773282910958,2.10695478,85.887,85.841,3.95257895]
[1773282911351,2.10695478,85.887,85.825,3.95257895]
[1773282911352,2.5300959,85.88,85.825,3.95257895]
[1773282911552,2.10695478,85.879,85.825,3.95257895]
[1773282912652,2.10695478,85.879,85.83,2.5300959]
[1773282912852,2.10695478,85.879,85.831,3.95257895]
[1773282913053,10.478,85.883,85.831,3.95257895]
[1773282913460,2.10308874,85.893,85.775,35.03]
[1773282913461,2.10308874,85.893,85.841,3.95257895]
[1773282913752,2.10308874,85.879,85.821,3.95257895]
[1773282914460,10.479,85.877,85.821,3.95257895]
[1773282914856,12.57847671,85.877,85.821,3.95257895]
[1773282915451,10.479,85.875,85.821,3.95257895]
[1773282915655,2.09947671,85.874,85.821,3.95257895]
[1773282917259,10.48,85.873,85.821,3.95257895]
[1773282917559,1.98539253,85.872,85.821,3.95257895]
[1773282918859,10.48,85.871,85.821,3.95257895]
[1773282920453,12.46226722,85.871,85.821,3.95257895]
[1773282921357,10.478,85.883,85.831,3.87665597]
[1773282921559,2.5300959,85.9,85.831,3.87665597]
[1773282921764,10.476,85.903,85.851,3.87665597]
[1773282921959,1.98201829,85.912,85.861,3.87665597]
[1773282923261,10.475,85.911,85.861,3.87665597]
[1773282923457,1.98473665,85.91,85.85,2.5300959]
[1773282923664,2.5300959,85.89,85.831,3.87665597]
[1773282923959,1.98473665,85.899,85.831,3.87665597]
[1773282924457,1.98473665,85.899,85.841,3.87665597]
[1773282924857,2.00377098,85.909,85.851,3.87665597]
[1773282925057,2.00377098,85.899,85.851,3.87665597]
[1773282925257,2.5300959,85.89,85.851,3.87665597]
[1773282925858,4.53386688,85.89,85.831,3.87665597]
[1773282926463,10.478,85.887,85.831,3.87665597]
[1773282928262,10.479,85.881,85.831,3.87665597]
[1773282929867,10.479,85.881,85.847,0.07350134]
[1773282930967,2.05205628,85.878,85.847,0.07350134]
[1773282931565,2.05205628,85.878,85.831,3.87665597]
[1773282931764,2.05205628,85.869,85.727,3.87665597]
[1773282931968,2.05205628,85.839,85.771,3.87665597]
[1773282932169,2.5300959,85.83,85.771,3.87665597]
[1773282932564,2.5300959,85.82,85.771,3.87665597]
[1773282932767,2.5300959,85.82,85.671,163.406]
[1773282932768,5.84353291,85.909,85.811,3.87665597]
[1773282932959,5.84353291,85.899,85.84,2.5300959]
[1773282933165,5.84353291,85.899,85.806,35.03]
[1773282933466,2.5300959,85.88,85.82,2.5300959]
[1773282933672,5.84353291,85.869,85.806,35.03]
[1773282933864,5.84353291,85.869,85.81,2.5300959]
[1773282934061,2.5300959,85.88,85.82,2.5300959]
[1773282934467,5.84353291,85.879,85.82,2.5300959]
[1773282935368,5.84353291,85.879,85.824,10.485]
[1773282939671,5.80870534,85.877,85.811,10.487]
[1773282940177,5.80870534,85.877,85.821,10.486]
[1773282941488,5.80870534,85.877,85.763,163.231]
[1773282941489,5.81040916,85.829,85.71,6.32750352]
[1773282941771,5.81040916,85.827,85.71,6.32750352]
[1773282943179,5.82490827,85.815,85.76,0.07386118]
[1773282943878,5.82490827,85.815,85.715,36.66]
[1773282944378,5.82490827,85.813,85.743,10.495]
[1773282946282,10.485,85.825,85.73,6.32750352]
[1773282947185,16.31066382,85.825,85.73,6.32750352]
[1773282947376,16.31066382,85.825,85.765,10.493]
[1773282947580,5.82566382,85.813,85.716,35.03]
[1773282947775,5.82566382,85.779,85.68,6.32750352]
[1773282947979,5.82566382,85.779,85.704,10.5]
[1773282948279,5.82566382,85.779,85.68,6.32750352]
[1773282948679,5.82566382,85.778,85.691,10.502]
[1773282950381,5.84992462,85.767,85.691,10.502]
[1773282951382,5.84992462,85.767,85.702,10.5]
[1773282957681,5.84992462,85.767,85.71,2.53756314]
[1773282958085,5.92527722,85.759,85.7,2.53756314]
[1773282959792,5.92527722,85.759,85.69,10.502]
[1773282959793,2.53756314,85.75,85.69,13.03956314]
[1773282959993,5.92652447,85.749,85.69,13.03956314]
[1773282960695,5.92652447,85.739,85.68,2.53756314]
[1773282961297,5.92652447,85.739,85.69,2.53756314]
[1773282961893,5.92652447,85.739,85.681,10.503]
[1773282962294,36.7,85.788,85.678,36.7]
[1773282962295,5.9286156,85.729,85.678,36.7]
[1773282962491,2.53756314,85.72,85.678,36.7]
[1773282962700,5.9286156,85.719,85.66,2.53756314]
[1773282962893,5.9286156,85.719,85.67,2.53756314]
[1773282963797,5.92938584,85.709,85.65,13.04456314]
[1773282964309,163.219,85.77,85.641,36.7]
[1773282964310,10.498,85.724,85.68,2.53756314]
[1773282964507,5.92938584,85.725,85.68,2.53756314]
[1773282965807,5.92938584,85.725,85.694,0.07351534]
[1773282970406,5.92779218,85.743,85.694,0.07351534]
[1773282972211,5.92639786,85.739,85.694,0.07351534]
[1773282972906,5.92639786,85.739,85.678,10.503]
[1773282973505,5.92424022,85.737,85.678,10.503]
[1773282973907,5.92424022,85.737,85.67,6.34835516]
[1773282974103,5.92424022,85.719,85.63,6.34835516]
[1773282975313,10.499,85.717,85.651,10.507]
[1773282975515,5.92429327,85.716,85.651,10.507]
[1773282977617,36.72,85.76,85.625,38.74840939]
[1773282977618,5.91497413,85.759,85.65,6.34835516]
[1773282978415,5.91497413,85.759,85.696,0.07395863]
[1773282979018,5.91497413,85.759,85.65,6.34835516]
[1773282979512,5.91526815,85.735,85.67,10.504]
[1773282980407,6.34835516,85.76,85.678,10.503]
[1773282980408,5.91526815,85.731,85.678,10.503]
[1773282981716,5.91266187,85.729,85.678,10.503]
[1773282982014,5.91266187,85.729,85.696,0.07420841]
[1773282986423,5.91266187,85.729,85.669,10.504]
[1773282987324,5.86426929,85.711,85.656,10.506]
[1773282988421,6.34835516,85.74,85.656,10.506]
[1773282988422,5.86426929,85.709,85.656,10.506]
[1773282989025,5.86426929,85.709,85.625,2.02840939]
[1773282989633,5.87248065,85.669,85.61,2.5432774]
[1773282989923,5.87248065,85.683,85.64,2.5432774]
[1773282990124,5.87248065,85.697,85.65,2.5432774]
[1773282990328,5.87248065,85.697,85.66,2.5432774]
[1773282990727,2.5432774,85.72,85.66,2.5432774]
[1773282990928,5.87230953,85.719,85.66,2.5432774]
[1773282991524,5.87230953,85.706,85.618,36.72]
[1773282991732,5.87230953,85.706,85.65,2.5432774]
[1773282992130,5.87230953,85.706,85.641,10.508]
[1773282992320,5.87230953,85.706,85.65,2.5432774]
[1773282994927,5.89807294,85.703,85.65,2.5432774]
[1773282995730,0.07424442,85.685,85.65,2.5432774]
[1773282998328,0.07424442,85.685,85.66,2.5432774]
[1773282999934,0.07424442,85.685,85.607,36.72]
[1773282999935,0.07424442,85.685,85.65,2.5432774]
[1773283000132,0.07424442,85.685,85.64,2.5432774]
[1773283000333,5.9744663,85.685,85.64,2.5432774]
[1773283000534,5.90022188,85.685,85.63,2.5432774]
[1773283000934,5.90022188,85.685,85.629,10.509]
[1773283000935,5.89895319,85.679,85.62,2.5432774]
[1773283001131,5.89895319,85.679,85.618,10.511]
[1773283001437,5.89895319,85.679,85.62,2.5432774]
[1773283001737,5.89895319,85.676,85.62,2.5432774]
[1773283002035,5.89895319,85.669,85.62,2.5432774]
[1773283002236,5.89895319,85.669,85.61,2.5432774]
[1773283002742,5.90067841,85.659,85.6,2.5432774]
[1773283004035,0.07353334,85.638,85.6,2.5432774]
[1773283004232,0.07353334,85.638,85.588,10.514]
[1773283004440,5.90067841,85.637,85.6,2.5432774]
[1773283005636,5.90067841,85.637,85.597,10.513]
[1773283008241,10.76304425,85.705,85.608,10.512]
[1773283008242,5.90087242,85.659,85.608,10.512]
[1773283008640,5.90087242,85.659,85.59,6.36128681]
[1773283009336,5.90087242,85.659,85.596,10.513]
[1773283010444,5.89927979,85.655,85.596,10.513]
[1773283015247,5.89419989,85.651,85.596,10.513]
[1773283015943,5.89419989,85.651,85.604,10.512]
[1773283016248,5.89419989,85.651,85.586,199.03925238]
[1773283016641,5.89419989,85.642,85.586,209.55425238]
[1773283016845,5.89419989,85.642,85.583,36.72]
[1773283017848,5.89419989,85.642,85.57,6.36128681]
[1773283018146,5.89419989,85.642,85.57,43.08128681]
[1773283018347,5.90217598,85.639,85.57,43.08128681]
[1773283018749,5.90217598,85.655,85.6,6.36128681]
[1773283019242,14.31111896,85.72,85.57,36.72]
[1773283019243,5.97052193,85.654,85.583,10.515]
[1773283019636,5.97052193,85.635,85.583,10.515]
[1773283020644,5.97052193,85.635,85.57,47.237]
[1773283021647,5.97318488,85.633,85.57,47.237]
[1773283023757,6.00085746,85.659,85.57,43.08128681]
[1773283024747,6.00085746,85.654,85.591,10.514]
[1773283024949,6.00085746,85.654,85.57,43.08128681]
[1773283024950,6.00085746,85.654,85.59,6.36128681]
[1773283025645,6.00085746,85.654,85.611,10.512]
[1773283025848,6.00085746,85.654,85.62,2.54332777]
[1773283026447,5.99730413,85.679,85.63,2.54332777]
[1773283026755,5.99730413,85.679,85.64,2.54332777]
[1773283027652,5.99730413,85.679,85.63,2.54332777]
[1773283029149,6.08837883,85.677,85.63,2.54332777]
[1773283029353,6.08837883,85.677,85.61,2.54332777]
[1773283029354,2.54332777,85.67,85.61,2.54332777]
[1773283029651,6.08837883,85.649,85.59,2.54465906]
[1773283029855,6.08837883,85.639,85.59,2.54465906]
[1773283033953,6.05877203,85.636,85.58,2.54465906]
[1773283035155,6.0550587,85.634,85.582,10.515]
[1773283035348,6.0550587,85.634,85.6,2.54465906]
[1773283036151,6.0550587,85.634,85.59,2.54465906]
[1773283036350,6.0550587,85.619,85.559,196.63760598]
[1773283036553,6.0550587,85.619,85.57,2.54465906]
[1773283036754,6.0550587,85.633,85.58,2.54465906]
[1773283036954,6.0550587,85.633,85.59,2.54465906]
[1773283037151,6.0550587,85.633,85.58,2.54465906]
[1773283038255,6.05213387,85.629,85.57,2.54465906]
[1773283038654,6.05213387,85.629,85.562,36.72]
[1773283038855,6.05213387,85.629,85.57,2.54465906]
[1773283039257,6.05213387,85.629,85.572,10.516]
[1773283040760,6.02760517,85.625,85.57,2.54465906]
[1773283041755,6.02760517,85.625,85.58,2.54465906]
[1773283043361,6.02760517,85.625,85.581,10.515]
[1773283043753,10.507,85.647,85.581,10.515]
[1773283043754,6.12677964,85.646,85.59,2.54465906]
[1773283044462,6.12677964,85.642,85.59,2.54465906]
[1773283045564,6.12677964,85.642,85.59,13.05865906]
[1773283046065,6.12152954,85.655,85.61,2.54465906]
[1773283046361,2.54465906,85.62,85.514,13.25464158]
[1773283046565,10.514,85.595,85.514,13.25464158]
[1773283046762,2.54465906,85.56,85.514,13.25464158]
[1773283047061,2.54465906,85.57,85.514,11.22464158]
[1773283048164,36.72,85.586,85.5,2.54465906]
[1773283048358,36.72,85.586,85.484,36.72]
[1773283048359,2.54465906,85.56,85.484,36.72]
[1773283048558,2.54465906,85.56,85.5,2.54465906]
[1773283048766,36.72,85.578,85.484,36.72]
[1773283048767,2.54465906,85.57,85.484,47.247]
[1773283049065,10.463704,85.569,85.51,2.54465906]
[1773283049262,2.54465906,85.57,85.52,14.63347542]
[1773283050469,2.54465906,85.58,85.52,14.63347542]
[1773283051568,2.54465906,85.58,85.497,36.74]
[1773283051569,2.54465906,85.58,85.53,14.72241681]
[1773283051764,2.54465906,85.61,85.55,2.54465906]
[1773283052072,2.54465906,85.61,85.551,12.17775775]
[1773283052272,10.44047022,85.609,85.551,12.17775775]
[1773283052471,10.44047022,85.608,85.551,12.17775775]
[1773283052674,2.54465906,85.61,85.551,12.17775775]
[1773283052872,10.43985465,85.609,85.551,12.17775775]
[1773283053171,10.43985465,85.608,85.551,12.17775775]
[1773283053373,2.54465906,85.61,85.551,12.17775775]
[1773283053565,10.43806603,85.609,85.551,12.17775775]
[1773283053767,6.36719796,85.64,85.551,12.17775775]
[1773283053967,10.44034499,85.639,85.551,12.17775775]
[1773283054166,10.44034499,85.638,85.551,12.17775775]
[1773283054368,10.44034499,85.637,85.551,12.17775775]
[1773283054565,10.44034499,85.636,85.551,12.17775775]
[1773283054774,10.44034499,85.636,85.531,36.74]
[1773283054775,10.509,85.63,85.554,12.24716283]
[1773283054974,10.44034499,85.629,85.554,12.24716283]
[1773283055172,10.44034499,85.628,85.554,12.24716283]
[1773283055369,8.40028232,85.65,85.554,12.24716283]
[1773283055370,10.51,85.626,85.554,12.24716283]
[1773283055867,10.43747332,85.625,85.554,12.24716283]
[1773283056069,8.40028232,85.65,85.554,12.24716283]
[1773283056070,20.94747332,85.624,85.554,12.24716283]
[1773283056270,10.51,85.624,85.554,12.24716283]
[1773283056772,10.51,85.622,85.554,12.24716283]
[1773283056980,10.43756234,85.621,85.554,12.24716283]
[1773283057178,10.43756234,85.62,85.554,12.24716283]
[1773283057379,10.43756234,85.619,85.554,12.24716283]
[1773283057575,10.43756234,85.618,85.554,12.24716283]
[1773283057773,10.512,85.612,85.554,12.24716283]
[1773283058278,10.513,85.601,85.554,12.24716283]
[1773283059780,17.14578885,85.63,85.554,12.24716283]
[1773283059983,10.43637657,85.629,85.554,12.24716283]
[1773283060179,10.43637657,85.628,85.554,12.24716283]
[1773283060477,10.43637657,85.627,85.554,12.24716283]
[1773283060684,10.43637657,85.626,85.554,12.24716283]
[1773283060883,10.43637657,85.625,85.554,12.24716283]
[1773283061083,10.43637657,85.624,85.554,12.24716283]
[1773283061283,17.14578885,85.63,85.554,12.24716283]
[1773283061284,10.43637657,85.623,85.554,12.24716283]
[1773283061483,6.36719796,85.63,85.554,12.24716283]
[1773283061484,10.513,85.597,85.554,12.24716283]
[1773283062381,10.512,85.608,85.554,12.24716283]
[1773283062880,10.51,85.622,85.554,12.24716283]
[1773283063082,10.43780868,85.621,85.554,12.24716283]
[1773283063278,10.43780868,85.62,85.554,12.24716283]
[1773283063584,10.77859089,85.643,85.554,12.24716283]
[1773283063882,10.51,85.627,85.554,12.24716283]
[1773283064274,10.511,85.618,85.554,12.24716283]
[1773283064474,10.77859089,85.647,85.554,12.24716283]
[1773283064684,10.44117678,85.646,85.554,12.24716283]
[1773283064988,10.44117678,85.645,85.554,12.24716283]
[1773283065283,10.44117678,85.644,85.554,12.24716283]
[1773283065485,10.509,85.629,85.566,12.21214576]
[1773283065680,10.44117678,85.628,85.566,12.21214576]
[1773283065880,10.77859089,85.651,85.566,12.21214576]
[1773283066182,10.77859089,85.647,85.566,12.21214576]
[1773283066387,21.22059206,85.646,85.566,12.21214576]
[1773283066687,10.44200117,85.645,85.566,12.21214576]
[1773283066987,21.17546889,85.644,85.566,12.21214576]
[1773283067187,10.44201763,85.643,85.566,12.21214576]
[1773283067388,10.511,85.62,85.566,12.21214576]
[1773283068685,10.511,85.62,85.492,11.68]
[1773283068686,10.44135101,85.619,85.507,12.21288846]
[1773283068887,10.44135101,85.618,85.511,12.21234755]
[1773283069082,10.44135101,85.617,85.511,12.21234755]
[1773283069289,10.44135101,85.616,85.511,12.21234755]
[1773283069589,10.44135101,85.615,85.511,12.21234755]
[1773283069789,10.44135101,85.614,85.511,12.21234755]
[1773283069989,10.44135101,85.613,85.511,12.21234755]
[1773283070188,10.512,85.605,85.541,12.21234755]
[1773283070388,10.44135101,85.604,85.541,12.21234755]
[1773283070588,10.44135101,85.603,85.541,12.21234755]
[1773283070785,10.512,85.605,85.541,12.21234755]
[1773283071091,10.4410757,85.604,85.541,12.21234755]
[1773283071291,10.512,85.605,85.541,12.21234755]
[1773283071892,10.512,85.605,85.547,12.18041629]
[1773283072091,10.44624758,85.604,85.547,12.18041629]
[1773283072292,10.512,85.605,85.547,12.18041629]
[1773283072592,10.44629004,85.604,85.547,12.18041629]
[1773283072785,10.512,85.605,85.55,12.21040968]
[1773283072987,10.511,85.615,85.55,12.21040968]
[1773283073286,10.44703433,85.614,85.55,12.21040968]
[1773283073591,10.44703433,85.613,85.55,12.21040968]
[1773283073791,10.44703433,85.612,85.55,12.21040968]
[1773283074093,10.511,85.615,85.55,12.21040968]
[1773283074388,10.46093321,85.614,85.552,12.21040968]
[1773283074595,10.51,85.628,85.552,12.21040968]
[1773283074892,10.46143422,85.627,85.552,12.21040968]
[1773283075093,10.46143422,85.626,85.552,12.21040968]
[1773283075293,10.46143422,85.625,85.552,12.21040968]
[1773283075495,10.46143422,85.624,85.552,12.21040968]
[1773283075692,10.46143422,85.623,85.552,12.21040968]
[1773283075892,10.73345126,85.643,85.552,12.21040968]
[1773283076092,10.46468889,85.642,85.552,12.21040968]
[1773283076388,10.46468889,85.642,85.55,6.36719796]
[1773283076389,10.51,85.626,85.567,12.21174028]
[1773283076596,10.46468889,85.625,85.567,12.21174028]
[1773283076794,10.46468889,85.624,85.567,12.21174028]
[1773283076991,10.51,85.626,85.567,12.21174028]
[1773283078794,10.51,85.626,85.568,10.517]
[1773283078994,10.51,85.626,85.569,12.19930824]
[1773283080796,10.511,85.616,85.569,12.19930824]
[1773283081698,10.511,85.616,85.506,2.03344669]
[1773283081699,10.513,85.596,85.556,12.19447307]
[1773283081893,6.36719796,85.62,85.542,12.19447307]
[1773283082095,46.50538906,85.619,85.542,12.19447307]
[1773283082397,9.78538906,85.618,85.501,12.19447307]
[1773283082590,36.72,85.619,85.501,12.19447307]
[1773283082591,6.36719796,85.6,85.501,12.19447307]
[1773283082791,9.78538906,85.599,85.501,12.19447307]
[1773283082987,9.78538906,85.598,85.501,12.19447307]
[1773283083199,9.78930197,85.597,85.501,12.19447307]
[1773283083397,10.515,85.58,85.517,12.1887276]
[1773283084091,36.72,85.619,85.526,12.1887276]
[1773283084297,36.72,85.657,85.551,12.1887276]
[1773283084500,9.79507126,85.656,85.551,12.1887276]
[1773283084691,10.511,85.618,85.554,12.1887276]
[1773283090304,36.74,85.647,85.554,12.1887276]
[1773283090305,10.513,85.598,85.554,12.1887276]
[1773283090908,9.79976944,85.617,85.554,12.1887276]